bitfinex/quotes_BTCUSD_20220307
["timestamp","ask_amount","ask_price","bid_price","bid_amount"]
[1646669317973,0.21754175,39495.0,39492.0,0.15]
[1646669318227,0.18221554,39496.0,39495.0,0.25]
[1646669318427,0.18221554,39496.0,39491.0,0.36558412]
[1646669318428,0.18221554,39496.0,39491.0,0.4]
[1646669318634,29.20073437,39500.0,39495.0,0.526564]
[1646669318829,27.82121137,39500.0,39499.0,0.4]
[1646669319027,26.99516648,39500.0,39499.0,0.84048412]
[1646669319328,26.99516648,39500.0,39499.0,1.40827]
[1646669319529,26.99516648,39500.0,39499.0,0.2499]
[1646669319728,26.99516648,39500.0,39499.0,0.14989955]
[1646669320129,1.2,39498.0,39495.0,0.1898587]
[1646669320332,1.2,39498.0,39491.0,0.15]
[1646669320531,0.37534276,39497.0,39491.0,0.15]
[1646669320731,0.70965457,39497.0,39491.0,0.126598]
[1646669320933,0.70965457,39497.0,39486.0,0.25]
[1646669320934,1.55,39496.0,39481.0,0.05]
[1646669321237,1.55,39496.0,39483.0,0.00037907]
[1646669321630,0.19644989,39485.0,39483.0,0.00037907]
[1646669321878,0.19644989,39485.0,39479.0,0.34058412]
[1646669321879,0.15,39489.0,39463.0,0.45]
[1646669322079,0.15,39489.0,39466.0,0.02665419]
[1646669322278,0.15,39486.0,39464.0,3.52301693]
[1646669322480,0.34058412,39485.0,39476.0,0.0633145]
[1646669322678,0.15,39485.0,39476.0,0.0633145]
[1646669322878,0.27255063,39484.0,39479.0,0.126636]
[1646669323080,0.48440202,39484.0,39482.0,0.0999]
[1646669323284,0.63440202,39484.0,39482.0,0.0999]
[1646669323885,0.86945184,39484.0,39482.0,0.0999]
[1646669324083,0.34058412,39489.0,39472.0,0.07597549]
[1646669324084,0.15,39489.0,39472.0,0.239308]
[1646669324282,0.14950402,39493.0,39484.0,0.0999]
[1646669324484,0.14950402,39489.0,39484.0,0.0999]
[1646669324882,0.35469846,39495.0,39484.0,0.1499]
[1646669325085,0.25419468,39488.0,39484.0,0.1499]
[1646669325283,0.18132188,39488.0,39484.0,0.1499]
[1646669325728,0.3308259,39488.0,39484.0,0.1499]
[1646669326130,0.17561486,39485.0,39484.0,0.1499]
[1646669326328,0.22459833,39485.0,39484.0,0.1499]
[1646669327133,0.22459833,39485.0,39484.0,0.0499]
[1646669327330,0.43072988,39485.0,39484.0,0.0499]
[1646669328131,0.18132188,39488.0,39484.0,0.0499]
[1646669328530,0.18132188,39488.0,39482.0,0.063322]
[1646669329037,1.69950402,39484.0,39474.0,0.1]
[1646669329234,0.19464133,39479.0,39467.0,0.1]
[1646669329495,1.55,39482.0,39472.0,0.063339]
[1646669329694,0.20398042,39476.0,39472.0,0.063339]
[1646669329891,0.20398042,39476.0,39468.0,0.01266]
[1646669330092,0.24438578,39473.0,39467.0,0.01265]
[1646669330298,0.24438578,39473.0,39463.0,0.01265]
[1646669330490,0.24438578,39473.0,39472.0,0.0497]
[1646669331191,0.24438578,39473.0,39460.0,0.01265]
[1646669331192,1.1,39472.0,39460.0,0.00765]
[1646669331391,1.1,39472.0,39458.0,0.063353]
[1646669331695,1.45342816,39472.0,39458.0,0.058353]
[1646669332090,0.20169998,39466.0,39458.0,0.058353]
[1646669332289,1.47909816,39472.0,39459.0,0.063353]
[1646669332290,0.21268084,39461.0,39459.0,0.063353]
[1646669332490,0.17558322,39463.0,39461.0,0.40402195]
[1646669333333,0.28499092,39462.0,39461.0,0.40402195]
[1646669333728,1.55,39461.0,39456.0,0.28697999]
[1646669333929,1.55,39461.0,39456.0,0.27432999]
[1646669333930,0.52102213,39460.0,39456.0,0.27432999]
[1646669334130,0.7827,39459.0,39456.0,0.27432999]
[1646669334333,0.52102213,39460.0,39456.0,0.27432999]
[1646669334334,1.13407172,39458.0,39456.0,0.27432999]
[1646669334628,0.18865815,39457.0,39456.0,0.27432999]
[1646669334830,0.7827,39455.0,39452.0,0.0015]
[1646669335029,0.16254075,39453.0,39452.0,0.0999]
[1646669335228,0.30715924,39456.0,39452.0,0.0999]
[1646669335427,0.15,39462.0,39452.0,0.0949]
[1646669335428,0.20816427,39461.0,39452.0,0.0949]
[1646669335628,0.74642072,39461.0,39452.0,0.0001]
[1646669335829,0.74642072,39461.0,39442.0,0.1]
[1646669335830,0.70423869,39461.0,39442.0,0.1]
[1646669336030,0.126776,39458.0,39442.0,0.1]
[1646669336229,0.7827,39456.0,39442.0,0.1]
[1646669336532,0.846091,39454.0,39442.0,0.05]
[1646669336727,0.7827,39452.0,39442.0,0.05]
[1646669336974,0.21205593,39443.0,39442.0,0.045]
[1646669337375,0.21205593,39443.0,39442.0,0.042]
[1646669337774,0.44911447,39448.0,39442.0,0.042]
[1646669337775,0.05,39453.0,39442.0,0.39387296]
[1646669337975,0.4699,39466.0,39444.0,0.15]
[1646669338174,0.497,39472.0,39445.0,0.35187296]
[1646669338375,0.395049,39465.0,39452.0,0.1998]
[1646669338573,0.7827,39463.0,39444.0,0.15]
[1646669338773,0.1501,39465.0,39444.0,0.26615019]
[1646669338774,0.18634818,39449.0,39444.0,0.26615019]
[1646669338973,0.18634818,39449.0,39444.0,0.1]
[1646669339274,0.18634818,39449.0,39445.0,0.00036876]
[1646669339579,0.35187296,39457.0,39451.0,0.35785693]
[1646669339874,0.15649061,39456.0,39451.0,0.35285693]
[1646669340077,0.27436293,39453.0,39451.0,0.35285693]
[1646669340276,0.647,39472.0,39451.0,0.35285693]
[1646669340485,0.35187296,39471.0,39452.0,0.0003687]
[1646669340737,1.92688798,39475.0,39452.0,0.35224166]
[1646669340738,0.33631385,39474.0,39452.0,0.35224166]
[1646669340934,0.36226466,39474.0,39452.0,0.45224166]
[1646669341140,0.20797068,39465.0,39455.0,0.063363]
[1646669341338,0.18552895,39458.0,39455.0,0.063363]
[1646669341736,0.18552895,39458.0,39452.0,0.1]
[1646669341935,0.18552895,39458.0,39452.0,0.095]
[1646669342139,0.17262535,39460.0,39451.0,0.40285693]
[1646669342337,0.19400986,39458.0,39451.0,0.40285693]
[1646669342538,0.19400986,39458.0,39451.0,0.35285693]
[1646669342734,0.35454162,39459.0,39451.0,0.35285693]
[1646669342934,0.17262535,39460.0,39453.0,0.00035725]
[1646669343135,2.12969398,39475.0,39453.0,0.00035725]
[1646669343344,1.92688798,39475.0,39453.0,0.12708525]
[1646669343536,1.92688798,39475.0,39454.0,0.35454162]
[1646669343735,0.16787202,39469.0,39454.0,0.34954162]
[1646669344138,0.16787202,39469.0,39450.0,0.126725]
[1646669344139,0.15,39457.0,39445.0,0.24773136]
[1646669344395,0.15,39457.0,39436.0,0.34695811]
[1646669344396,0.395049,39444.0,39436.0,0.1]
[1646669344594,0.395049,39441.0,39429.0,0.13879534]
[1646669344797,1.55,39445.0,39429.0,0.13879534]
[1646669344798,0.395049,39436.0,39429.0,0.13879534]
[1646669344996,1.55,39445.0,39435.0,0.21190338]
[1646669345194,0.1,39449.0,39435.0,0.21190338]
[1646669345196,0.126826,39440.0,39435.0,0.21190338]
[1646669345395,0.0426,39449.0,39435.0,0.21190338]
[1646669345594,0.5079,39455.0,39436.0,0.24842339]
[1646669345796,0.4653,39455.0,39454.0,0.1753029]
[1646669345992,0.9739,39463.0,39447.0,0.1]
[1646669345993,0.85454162,39462.0,39447.0,0.1]
[1646669346194,0.063356,39461.0,39455.0,0.16287023]
[1646669346395,0.01267,39471.0,39455.0,0.16287023]
[1646669346396,0.46507,39471.0,39455.0,0.16287023]
[1646669346595,0.491537,39479.0,39455.0,0.16287023]
[1646669346596,0.0999,39473.0,39459.0,0.02567]
[1646669346794,0.0999,39473.0,39469.0,0.0999]
[1646669347196,0.0999,39473.0,39470.0,0.2121921]
[1646669347397,0.35454162,39477.0,39470.0,0.2071921]
[1646669347792,0.126675,39476.0,39469.0,0.0999]
[1646669347996,0.20947274,39470.0,39458.0,0.15]
[1646669348229,0.00019451,39473.0,39458.0,0.15]
[1646669348230,0.12690008,39473.0,39458.0,0.2]
[1646669348430,0.35454162,39472.0,39461.0,0.07487442]
[1646669348829,0.2144475,39471.0,39469.0,0.21427666]
[1646669349228,0.20634775,39467.0,39461.0,0.1]
[1646669349430,0.20634775,39467.0,39458.0,0.1499]
[1646669349431,0.35454162,39466.0,39458.0,0.1499]
[1646669349629,0.35454162,39466.0,39458.0,0.0999]
[1646669350033,0.35454162,39466.0,39448.0,0.05]
[1646669350228,0.35454162,39466.0,39452.0,0.18203273]
[1646669350229,0.17566922,39459.0,39452.0,0.18203273]
[1646669350429,0.063371,39458.0,39448.0,0.05]
[1646669350630,0.063371,39458.0,39447.0,0.0999]
[1646669350631,0.35454162,39457.0,39447.0,0.0999]
[1646669350830,1.17984162,39457.0,39447.0,0.0999]
[1646669351031,0.395049,39454.0,39447.0,0.0999]
[1646669351231,0.395049,39454.0,39431.0,0.19855693]
[1646669351232,0.458452,39449.0,39431.0,0.19855693]
[1646669351432,0.06340218,39442.0,39432.0,0.19431258]
[1646669351631,0.35454162,39441.0,39431.0,0.19855693]
[1646669351885,0.35454162,39441.0,39429.0,0.004]
[1646669352079,0.22387382,39443.0,39429.0,0.004]
[1646669352481,0.0467,39442.0,39434.0,0.2080667]
[1646669352684,0.20612621,39447.0,39443.0,0.21308005]
[1646669352880,1.55,39452.0,39443.0,0.21308005]
[1646669353081,0.0467,39451.0,39443.0,0.21308005]
[1646669353386,0.253611,39459.0,39443.0,0.21308005]
[1646669353387,0.01267,39460.0,39443.0,0.20308005]
[1646669353582,0.063364,39463.0,39443.0,0.20308005]
[1646669353583,0.35454162,39463.0,39443.0,0.20308005]
[1646669353782,0.35454162,39463.0,39443.0,0.39808005]
[1646669353783,0.24456109,39456.0,39443.0,0.39808005]
[1646669353982,0.00019451,39449.0,39443.0,0.20308005]
[1646669354583,0.505138,39448.0,39443.0,0.20308005]
[1646669354784,0.61641977,39447.0,39443.0,0.20308005]
[1646669354983,0.96995293,39445.0,39443.0,0.20308005]
[1646669355287,2.3327,39443.0,39439.0,0.00037861]
[1646669355487,0.79629062,39442.0,39439.0,8.61e-06]
[1646669355926,0.7827,39441.0,39429.0,0.004]
[1646669356127,0.40124162,39440.0,39429.0,0.004]
[1646669356328,0.17032934,39434.0,39429.0,0.004]
[1646669356527,0.17032934,39434.0,39429.0,0.20194948]
[1646669356528,0.0467,39433.0,39429.0,0.20194948]
[1646669356726,0.0467,39433.0,39429.0,0.004]
[1646669357129,0.0467,39433.0,39423.0,0.06341]
[1646669357130,0.75,39432.0,39423.0,0.06241]
[1646669357327,0.00013907,39429.0,39423.0,0.06241]
[1646669357528,0.00013907,39429.0,39420.0,0.0999]
[1646669357727,0.17710661,39426.0,39420.0,0.27094648]
[1646669357932,0.17710661,39426.0,39420.0,0.0999]
[1646669358129,0.17710661,39426.0,39412.0,0.025]
[1646669358130,0.22380661,39426.0,39417.0,0.05]
[1646669358330,0.22380661,39426.0,39408.0,0.70647168]
[1646669358331,0.27076222,39425.0,39409.0,0.19818914]
[1646669358532,0.22380661,39426.0,39421.0,0.00037827]
[1646669358533,0.41796991,39424.0,39421.0,0.00037827]
[1646669358730,0.17710661,39426.0,39421.0,0.00037827]
[1646669358928,0.00013907,39429.0,39421.0,0.00037827]
[1646669359677,0.23825406,39425.0,39416.0,0.19220515]
[1646669359879,0.06342255,39426.0,39423.0,0.0003547]
[1646669360079,0.12684855,39426.0,39423.0,0.0003547]
[1646669360881,0.12684855,39426.0,39412.0,0.0999]
[1646669360882,0.22670516,39425.0,39412.0,0.1999]
[1646669361078,0.3473992,39424.0,39413.0,0.19595284]
[1646669361281,0.41082727,39425.0,39413.0,0.19595284]
[1646669361479,0.06342807,39425.0,39413.0,0.19595284]
[1646669361681,0.00013907,39429.0,39417.0,0.19770752]
[1646669362079,0.06342187,39427.0,39413.0,0.19595284]
[1646669362277,0.23038689,39424.0,39419.0,0.17359503]
[1646669362678,0.23038689,39424.0,39412.0,0.1499]
[1646669362679,0.23038689,39424.0,39412.0,0.326744]
[1646669363130,0.39441485,39424.0,39412.0,0.326744]
[1646669363327,0.29017695,39424.0,39412.0,0.226744]
[1646669363528,0.29017695,39424.0,39415.0,0.19138864]
[1646669363729,0.29017695,39424.0,39415.0,0.25481464]
[1646669363934,0.35086452,39423.0,39408.0,0.126862]
[1646669364230,0.0467,39422.0,39407.0,0.01268]
[1646669364432,0.0467,39422.0,39406.0,0.05]
[1646669364433,0.35086452,39421.0,39406.0,0.05]
[1646669364729,0.395049,39419.0,39414.0,0.00037806]
[1646669364930,0.1269,39418.0,39414.0,0.00037806]
[1646669365130,0.395049,39416.0,39414.0,0.00037806]
[1646669365328,0.74591352,39417.0,39414.0,0.00037806]
[1646669365528,0.74591352,39417.0,39408.0,0.15454721]
[1646669365529,0.16726457,39417.0,39408.0,0.15454721]
[1646669365732,0.79811199,39417.0,39413.0,0.00037807]
[1646669366031,0.395049,39416.0,39413.0,0.00037807]
[1646669366874,0.23071157,39417.0,39406.0,0.05]
[1646669366875,0.45849804,39414.0,39406.0,0.05]
[1646669367079,0.12690204,39414.0,39413.0,0.00037807]
[1646669367273,0.56865104,39414.0,39413.0,0.00037807]
[1646669368073,0.56865104,39414.0,39407.0,0.35237703]
[1646669368074,0.56865104,39414.0,39406.0,0.05]
[1646669368278,0.17360204,39414.0,39412.0,0.00037808]
[1646669368475,0.395049,39413.0,39412.0,0.00037808]
[1646669368676,0.11014904,39414.0,39412.0,0.00037808]
[1646669368875,0.395049,39413.0,39412.0,0.00037808]
[1646669369078,0.17061069,39409.0,39406.0,0.01689063]
[1646669369276,0.17061069,39409.0,39406.0,0.01537808]
[1646669369475,0.06345471,39411.0,39406.0,0.01537808]
[1646669370277,0.0467,39418.0,39406.0,0.36318766]
[1646669370481,0.19065755,39423.0,39407.0,0.12166841]
[1646669370756,0.19065755,39423.0,39408.0,0.35938784]
[1646669370964,0.19065755,39423.0,39408.0,0.45938784]
[1646669371155,0.19065755,39423.0,39417.0,0.20858886]
[1646669371464,0.000203,39423.0,39417.0,0.20858886]
[1646669371658,0.000203,39423.0,39417.0,0.14558886]
[1646669372155,0.34670784,39433.0,39417.0,0.19558886]
[1646669372353,0.12684188,39426.0,39418.0,0.34670784]
[1646669372556,0.12684188,39426.0,39417.0,0.05]
[1646669372755,0.12684188,39426.0,39414.0,0.65918784]
[1646669372955,1.56266969,39436.0,39418.0,0.063416]
[1646669373155,0.00019633,39435.0,39421.0,0.06169356]
[1646669373359,0.00019633,39435.0,39422.0,0.34670784]
[1646669373559,0.0634154,39432.0,39422.0,0.39670784]
[1646669373756,0.0634154,39432.0,39422.0,0.05]
[1646669373960,0.0634154,39432.0,39420.0,0.05]
[1646669373961,0.21447848,39425.0,39420.0,0.05]
[1646669374156,0.21447848,39425.0,39414.0,0.05]
[1646669374157,0.395049,39423.0,39416.0,0.26248]
[1646669374398,0.21447848,39425.0,39417.0,0.34670784]
[1646669374698,0.21447848,39425.0,39416.0,0.2998]
[1646669374699,0.06343,39422.0,39416.0,0.2498]
[1646669375196,0.34133192,39425.0,39416.0,0.2498]
[1646669375396,0.26448074,39428.0,39416.0,0.2498]
[1646669375598,0.2201565,39433.0,39429.0,0.42493469]
[1646669375798,0.06342212,39434.0,39429.0,0.42493469]
[1646669375799,0.12684512,39434.0,39429.0,0.42493469]
[1646669376203,0.12684512,39434.0,39429.0,0.47493469]
[1646669376399,0.00019631,39435.0,39429.0,0.47493469]
[1646669376601,0.17017307,39438.0,39429.0,0.67236291]
[1646669376801,0.17017307,39438.0,39430.0,0.24920354]
[1646669376802,0.00019638,39435.0,39430.0,0.24920354]
[1646669376999,0.00019638,39435.0,39430.0,0.59601808]
[1646669377204,0.00019638,39435.0,39430.0,0.65941408]
[1646669377401,0.00019638,39435.0,39430.0,0.47360654]
[1646669377701,0.05,39447.0,39430.0,0.47360654]
[1646669377903,0.05,39447.0,39435.0,0.06281709]
[1646669378134,0.20284666,39444.0,39436.0,0.17573481]
[1646669378335,0.20284666,39444.0,39438.0,0.28185727]
[1646669378535,0.126792,39447.0,39439.0,0.34681454]
[1646669378743,0.0011,39453.0,39439.0,0.44681454]
[1646669378941,0.0011,39453.0,39439.0,0.47248454]
[1646669379137,0.0011,39453.0,39446.0,0.19549677]
[1646669379333,0.06338,39451.0,39446.0,0.19549677]
[1646669379534,0.48700616,39450.0,39440.0,0.01267]
[1646669379934,0.395049,39449.0,39440.0,0.01267]
[1646669380133,0.48700616,39450.0,39439.0,0.01267]
[1646669380333,0.00019638,39447.0,39444.0,0.07260145]
[1646669380535,0.395049,39446.0,39443.0,0.15814783]
[1646669380734,0.00019638,39447.0,39443.0,0.15814783]
[1646669380936,0.00019638,39447.0,39439.0,0.01267]
[1646669381133,0.00019638,39447.0,39436.0,0.35948454]
[1646669381343,0.063389,39448.0,39436.0,0.35948454]
[1646669381536,0.06358838,39447.0,39436.0,0.35948454]
[1646669381738,0.39524538,39447.0,39446.0,0.0999]
[1646669381977,0.38402307,39447.0,39446.0,0.0999]
[1646669382379,0.38402307,39447.0,39441.0,0.05625636]
[1646669382582,0.06339375,39447.0,39441.0,0.05625636]
[1646669382778,0.063392,39446.0,39441.0,0.05625636]
[1646669382981,0.063389,39448.0,39441.0,0.08192636]
[1646669383183,0.0011,39453.0,39447.0,0.02567]
[1646669383381,0.0011,39453.0,39448.0,0.011044]
[1646669383577,0.0011,39453.0,39448.0,0.049384]
[1646669383778,0.0011,39453.0,39449.0,0.06765216]
[1646669383982,0.0011,39453.0,39451.0,0.50154372]
[1646669384176,0.0011,39453.0,39451.0,0.30955672]
[1646669384377,0.0011,39453.0,39451.0,0.25955672]
[1646669386230,0.0011,39453.0,39451.0,0.50090954]
[1646669386541,0.0011,39453.0,39451.0,0.58405483]
[1646669386731,0.0011,39453.0,39451.0,0.93086937]
[1646669386933,0.0011,39458.0,39453.0,0.02567]
[1646669387133,0.0011,39458.0,39455.0,0.02567]
[1646669387333,0.0011,39458.0,39455.0,0.37248454]
[1646669387533,0.0011,39468.0,39456.0,0.01103]
[1646669387732,0.0011,39468.0,39460.0,0.02567]
[1646669387936,0.0011,39468.0,39461.0,0.036687]
[1646669388133,0.0011,39473.0,39466.0,0.02567]
[1646669388335,0.0011,39473.0,39470.0,0.22001422]
[1646669388532,0.0011,39473.0,39471.0,0.38348354]
[1646669388731,0.0011,39473.0,39472.0,0.37248454]
[1646669388931,0.0011,39473.0,39472.0,0.086667]
[1646669389475,0.0383,39478.0,39473.0,0.02567]
[1646669389674,0.0383,39478.0,39474.0,0.099988]
[1646669389876,0.0383,39478.0,39475.0,0.34681454]
[1646669390076,0.0011,39479.0,39476.0,0.010988]
[1646669390278,0.0001,39479.0,39476.0,0.819357]
[1646669390576,0.0001,39479.0,39478.0,0.04083667]
[1646669390780,26.98267882,39500.0,39479.0,0.02567]
[1646669390977,26.97887882,39500.0,39481.0,0.02537234]
[1646669391176,0.01265,39499.0,39483.0,0.02537234]
[1646669391376,0.01265,39499.0,39482.0,0.41505928]
[1646669391377,0.16146469,39487.0,39482.0,0.41505928]
[1646669391577,0.0007815,39485.0,39473.0,0.34546684]
[1646669391779,0.0007815,39485.0,39478.0,0.05]
[1646669391979,0.0007815,39485.0,39479.0,0.35644684]
[1646669392175,0.0007815,39485.0,39480.0,0.03553327]
[1646669392377,0.0007815,39485.0,39481.0,0.02567]
[1646669392576,0.0007815,39485.0,39484.0,0.28618258]
[1646669392778,0.0007815,39485.0,39484.0,0.73164942]
[1646669392978,0.0007815,39485.0,39484.0,1.19129305]
[1646669393237,0.00586089,39488.0,39487.0,0.02567]
[1646669393238,1.2e-05,39488.0,39487.0,0.02567]
[1646669393438,1.2e-05,39488.0,39487.0,0.010966]
[1646669394539,0.00371211,39492.0,39487.0,0.036636]
[1646669394738,0.00371211,39492.0,39488.0,0.113304]
[1646669395038,0.00371211,39492.0,39488.0,0.05]
[1646669395237,0.1968998,39491.0,39486.0,0.2998]
[1646669395435,0.1968998,39491.0,39487.0,0.010961]
[1646669395636,0.26303946,39490.0,39487.0,0.010961]
[1646669395836,0.26303946,39490.0,39486.0,0.05]
[1646669396038,0.26303946,39490.0,39483.0,0.1]
[1646669396235,0.26303946,39490.0,39486.0,0.00034163]
[1646669396438,0.395055,39488.0,39486.0,0.00034163]
[1646669396642,0.45838885,39488.0,39486.0,0.00034163]
[1646669397081,0.48925011,39487.0,39486.0,1.63e-06]
[1646669397280,2.76706385,39487.0,39486.0,1.63e-06]
[1646669397480,0.645055,39487.0,39475.0,0.1998]
[1646669397681,0.06335585,39484.0,39475.0,0.1998]
[1646669397882,0.25514529,39476.0,39464.0,0.23074152]
[1646669398082,0.73640732,39475.0,39462.0,0.21577248]
[1646669398482,0.395055,39475.0,39462.0,0.21577248]
[1646669398682,0.113361,39473.0,39466.0,0.1998]
[1646669398882,0.20822738,39468.0,39466.0,0.1998]
[1646669399081,0.06336324,39474.0,39466.0,0.1998]
[1646669399282,0.395044,39473.0,39466.0,0.1998]
[1646669399485,0.34135232,39475.0,39466.0,0.1998]
[1646669399682,0.395044,39473.0,39466.0,0.1998]
[1646669399885,0.28941955,39470.0,39466.0,0.1998]
[1646669400092,0.40472732,39469.0,39456.0,0.05]
[1646669400285,0.34135232,39469.0,39452.0,0.0999]
[1646669400734,0.19645636,39465.0,39453.0,0.17987557]
[1646669400933,0.19645636,39465.0,39461.0,0.00149971]
[1646669400934,0.06336922,39465.0,39461.0,0.00149971]
[1646669401131,0.01267,39475.0,39461.0,0.00149971]
[1646669401132,0.063364,39473.0,39461.0,0.00149971]
[1646669401338,0.35402232,39475.0,39461.0,0.00149971]
[1646669401530,0.34135232,39476.0,39461.0,0.00149971]
[1646669401730,0.05,39477.0,39461.0,0.00187462]
[1646669401929,0.22226973,39473.0,39465.0,0.18576642]
[1646669402134,0.05,39477.0,39476.0,0.09432185]
[1646669402331,0.64998333,39477.0,39476.0,0.09432185]
[1646669402530,0.91376455,39477.0,39476.0,0.09432185]
[1646669402732,0.445044,39477.0,39476.0,0.09432185]
[1646669402931,0.35515052,39482.0,39476.0,0.09432185]
[1646669402932,0.11265,39482.0,39476.0,0.09432185]
[1646669403132,0.395044,39481.0,39476.0,0.09432185]
[1646669403334,0.395044,39481.0,39476.0,0.15766585]
[1646669403532,0.395044,39481.0,39476.0,0.09432185]
[1646669403733,0.58718943,39479.0,39476.0,0.09432185]
[1646669403932,0.34250052,39478.0,39476.0,0.09432185]
[1646669404131,0.395044,39477.0,39476.0,0.09432185]
[1646669404383,0.395044,39477.0,39457.0,0.190046]
[1646669404384,0.458409,39475.0,39461.0,0.00297225]
[1646669404583,0.063367,39472.0,39461.0,0.00147251]
[1646669404788,0.21995176,39467.0,39461.0,0.00147251]
[1646669404982,0.34250052,39473.0,39464.0,0.24114184]
[1646669405186,0.01265,39476.0,39464.0,0.24114184]
[1646669405383,0.34250052,39485.0,39464.0,0.26456442]
[1646669405583,0.063344,39482.0,39464.0,0.36456442]
[1646669405785,0.73754452,39481.0,39465.0,0.16974685]
[1646669405984,0.73754452,39481.0,39469.0,0.063351]
[1646669405985,0.21772261,39476.0,39469.0,0.063351]
[1646669406185,0.395044,39475.0,39471.0,0.23648285]
[1646669406386,0.395044,39475.0,39469.0,0.063351]
[1646669406585,0.395044,39475.0,39464.0,0.05]
[1646669406787,0.395044,39473.0,39461.0,0.05]
[1646669406984,0.34250052,39474.0,39453.0,0.126716]
[1646669406985,0.395044,39471.0,39453.0,0.126716]
[1646669407184,0.34250052,39472.0,39460.0,0.063367]
[1646669407386,0.20882991,39469.0,39460.0,0.063367]
[1646669408232,0.33988324,39468.0,39460.0,0.063367]
[1646669408433,0.33988324,39468.0,39456.0,0.063378]
[1646669408632,0.06336744,39467.0,39456.0,0.063378]
[1646669408832,0.33988324,39466.0,39457.0,0.23814717]
[1646669409032,0.12674613,39465.0,39456.0,0.063378]
[1646669409431,0.12674613,39465.0,39460.0,0.00037792]
[1646669409834,0.06337307,39464.0,39460.0,0.00037792]
[1646669410140,0.06337307,39464.0,39462.0,0.1999]
[1646669410335,0.395044,39463.0,39462.0,0.1999]
[1646669410531,0.06337307,39464.0,39462.0,0.1999]
[1646669410736,0.395044,39463.0,39462.0,0.1999]
[1646669410942,0.126746,39472.0,39462.0,0.1999]
[1646669410943,0.1,39476.0,39463.0,0.75201667]
[1646669411142,0.02585784,39486.0,39464.0,0.33988324]
[1646669411143,0.01265,39480.0,39464.0,0.33988324]
[1646669411336,0.00018784,39486.0,39465.0,0.011907]
[1646669411337,0.01265,39485.0,39465.0,0.011907]
[1646669411535,0.00018784,39486.0,39464.0,0.43587961]
[1646669411735,0.25082405,39486.0,39474.0,0.28208697]
[1646669411989,0.25082405,39486.0,39480.0,0.063336]
[1646669411990,0.00018784,39486.0,39480.0,0.063336]
[1646669412192,0.00018784,39486.0,39482.0,0.126645]
[1646669412193,0.00037573,39486.0,39482.0,0.126645]
[1646669412385,0.00018789,39486.0,39483.0,0.016876]
[1646669412884,0.00018789,39486.0,39484.0,0.35408457]
[1646669413087,0.00018789,39486.0,39485.0,0.143494]
[1646669413485,0.00015402,39486.0,39485.0,0.143494]
[1646669413884,0.00015402,39486.0,39485.0,0.016872]
[1646669414085,0.00015402,39486.0,39485.0,0.19667129]
[1646669414284,0.00015402,39486.0,39485.0,0.66928296]
[1646669414485,0.00142316,39501.0,39487.0,0.126621]
[1646669414686,0.00142316,39501.0,39488.0,0.43241024]
[1646669414886,0.00142316,39501.0,39493.0,0.1998]
[1646669415088,27.18767437,39500.0,39494.0,0.05]
[1646669415292,0.24517428,39498.0,39494.0,0.05]
[1646669415489,1.55,39497.0,39490.0,0.126603]
[1646669415732,0.23163001,39492.0,39490.0,0.126603]
[1646669415931,0.23163001,39492.0,39481.0,0.36182661]
[1646669415932,0.23163001,39492.0,39491.0,0.126612]
[1646669416333,0.23163001,39492.0,39482.0,0.60340534]
[1646669416531,0.15982559,39492.0,39487.0,0.063314]
[1646669416732,0.15982559,39492.0,39486.0,0.19573704]
[1646669416934,2.30426296,39486.0,39484.0,0.3178102]
[1646669417135,2.30426296,39486.0,39485.0,0.19282554]
[1646669417432,2.30426296,39486.0,39485.0,0.016866]
[1646669417632,2.30426296,39486.0,39485.0,0.080177]
[1646669418237,2.30426296,39486.0,39481.0,0.15]
[1646669418435,2.30426296,39486.0,39482.0,0.063321]
[1646669418937,2.30426296,39486.0,39483.0,0.016876]
[1646669419235,2.30445062,39486.0,39483.0,0.016876]
[1646669419482,2.30445062,39486.0,39484.0,0.15898812]
[1646669419686,2.30445062,39486.0,39485.0,0.016873]
[1646669420078,2.30445062,39486.0,39485.0,0.3526447]
[1646669420280,2.30445062,39486.0,39485.0,0.37437367]
[1646669420481,0.00075053,39492.0,39486.0,1.55]
[1646669420482,0.00018766,39487.0,39486.0,1.55]
[1646669420679,0.00018766,39487.0,39486.0,1.59254]
[1646669420880,0.00018766,39487.0,39486.0,0.14254]
[1646669421080,0.00018766,39487.0,39486.0,0.21687]
[1646669421877,0.22243053,39498.0,39486.0,0.44142037]
[1646669422078,0.22243053,39498.0,39491.0,0.063307]
[1646669422278,0.22243053,39498.0,39492.0,0.016853]
[1646669422479,0.00142316,39501.0,39492.0,0.066853]
[1646669422681,0.00142316,39501.0,39493.0,0.02599279]
[1646669422881,0.21317572,39499.0,39494.0,0.016849]
[1646669423138,0.21317572,39499.0,39494.0,0.080143]
[1646669423339,0.21317572,39499.0,39494.0,0.180143]
[1646669423530,0.17887763,39498.0,39494.0,0.180143]
[1646669423726,0.17887763,39498.0,39494.0,0.163294]
[1646669424326,0.21317572,39499.0,39494.0,0.163294]
[1646669424725,0.21317572,39499.0,39494.0,0.113294]
[1646669425426,0.16230837,39498.0,39494.0,0.05]
[1646669425830,0.16249556,39498.0,39494.0,0.05]
[1646669426026,0.15749556,39498.0,39494.0,0.05]
[1646669426226,0.342634,39497.0,39494.0,0.05]
[1646669426425,0.15749556,39498.0,39494.0,0.05]
[1646669426629,0.342634,39497.0,39493.0,0.126588]
[1646669426881,0.15749556,39498.0,39493.0,0.126588]
[1646669427782,0.00018719,39497.0,39493.0,0.126588]
[1646669427982,0.00018719,39497.0,39494.0,0.016851]
[1646669428385,0.15359556,39498.0,39494.0,0.016851]
[1646669428584,0.15359556,39498.0,39495.0,0.126616]
[1646669428787,0.21317572,39499.0,39497.0,0.016846]
[1646669428983,0.21317572,39499.0,39496.0,0.113307]
[1646669429183,0.21317572,39499.0,39497.0,0.016844]
[1646669429384,0.21317572,39499.0,39496.0,0.113307]
[1646669429785,0.21991433,39498.0,39496.0,0.113307]
[1646669429985,0.21991433,39498.0,39497.0,0.063304]
[1646669430185,0.21336244,39499.0,39497.0,0.063304]
[1646669430629,0.20336244,39499.0,39496.0,0.063307]
[1646669430833,23.54691123,39500.0,39497.0,0.016844]
[1646669431038,21.81112811,39500.0,39498.0,0.02567]
[1646669431232,21.43146711,39500.0,39499.0,0.139111]